[Event "Titled Tuesday Blitz April 25 Late 2023"]
[White "Baltic, Fatih"]
[Black "Rodriguez, Santiago"]
[WhiteFideId "12979090"]
[BlackFideId "3000591"]
[WhiteElo "2200"]
[BlackElo "2249"]
[Result "1-0"]
[Round "01"]
[TimeControl "180+2"]
[Date "2023.04.25"]
[WhiteClock "0:00:01"]
[BlackClock "0:00:00"]

1. d4 {[%clk 0:00:01]}  Nf6 {[%clk 0:00:01]} 2. Bf4 {[%clk 0:00:01]}  d5 {[%clk 0:00:01]} 3. Nf3 {[%clk 0:00:01]}  e6 {[%clk 0:00:01]} 4. e3 {[%clk 0:00:01]}  Bd6 {[%clk 0:00:01]} 5. Bxd6 {[%clk 0:00:01]}  cxd6 {[%clk 0:00:01]} 6. c4 {[%clk 0:00:01]}  O-O {[%clk 0:00:01]} 7. Nc3 {[%clk 0:00:01]}  dxc4 {[%clk 0:00:01]} 8. Bxc4 {[%clk 0:00:01]}  b6 {[%clk 0:00:01]} 9. O-O {[%clk 0:00:01]}  Bb7 {[%clk 0:00:01]} 10. Qe2 {[%clk 0:00:01]}  Nbd7 {[%clk 0:00:01]} 11. Rac1 {[%clk 0:00:01]}  Rc8 {[%clk 0:00:01]} 12. Rfd1 {[%clk 0:00:01]}  Qe7 {[%clk 0:00:01]} 13. e4 {[%clk 0:00:01]}  Rxc4 {[%clk 0:00:01]} 14. Qxc4 {[%clk 0:00:01]}  Nxe4 {[%clk 0:00:01]} 15. Nxe4 {[%clk 0:00:01]}  Bxe4 {[%clk 0:00:01]} 16. Qe2 {[%clk 0:00:01]}  Nf6 {[%clk 0:00:01]} 17. Nd2 {[%clk 0:00:01]}  Bd5 {[%clk 0:00:01]} 18. Nc4 {[%clk 0:00:01]}  Rc8 {[%clk 0:00:01]} 19. Ne3 {[%clk 0:00:01]}  Rxc1 {[%clk 0:00:01]} 20. Rxc1 {[%clk 0:00:01]}  Bb7 {[%clk 0:00:01]} 21. Qc4 {[%clk 0:00:01]}  Ne8 {[%clk 0:00:01]} 22. b4 {[%clk 0:00:01]}  g6 {[%clk 0:00:01]} 23. a4 {[%clk 0:00:01]}  Kg7 {[%clk 0:00:01]} 24. a5 {[%clk 0:00:01]}  f5 {[%clk 0:00:01]} 25. a6 {[%clk 0:00:01]}  Ba8 {[%clk 0:00:01]} 26. d5 {[%clk 0:00:01]}  f4 {[%clk 0:00:01]} 27. Qxf4 {[%clk 0:00:01]}  exd5 {[%clk 0:00:01]} 28. Qd4+ {[%clk 0:00:01]}  Kh6 {[%clk 0:00:00]} 29. Ng4+ {[%clk 0:00:01]}  Kh5 {[%clk 0:00:00]} 30. h3 {[%clk 0:00:01]}  Ng7 {[%clk 0:00:00]} 31. Nf6+ {[%clk 0:00:01]}  Kh6 {[%clk 0:00:00]} 32. Ng8+ {[%clk 0:00:01]} 1-0


[Site "https://www.chess.com"]

[Event "Titled Tuesday Blitz April 25 Late 2023"]
[White "Dahlgren, James Allen"]
[Black "Chylewski, Patryk"]
[WhiteFideId "22256873"]
[BlackFideId "1186191"]
[WhiteElo "1824"]
[BlackElo "2163"]
[Result "0-1"]
[Round "01"]
[TimeControl "180+2"]
[Date "2023.04.25"]
[WhiteClock "0:00:01"]
[BlackClock "0:00:00"]

1. e3 {[%clk 0:00:01]}  d5 {[%clk 0:00:01]} 2. c4 {[%clk 0:00:01]}  c6 {[%clk 0:00:01]} 3. Nc3 {[%clk 0:00:01]}  Nf6 {[%clk 0:00:01]} 4. Nf3 {[%clk 0:00:01]}  a6 {[%clk 0:00:01]} 5. b3 {[%clk 0:00:01]}  Bg4 {[%clk 0:00:01]} 6. Bb2 {[%clk 0:00:01]}  Nbd7 {[%clk 0:00:01]} 7. Be2 {[%clk 0:00:01]}  e5 {[%clk 0:00:01]} 8. O-O {[%clk 0:00:01]}  Bd6 {[%clk 0:00:01]} 9. h3 {[%clk 0:00:01]}  Bh5 {[%clk 0:00:01]} 10. d4 {[%clk 0:00:01]}  e4 {[%clk 0:00:01]} 11. Nd2 {[%clk 0:00:01]}  Bxe2 {[%clk 0:00:01]} 12. Qxe2 {[%clk 0:00:01]}  O-O {[%clk 0:00:01]} 13. a4 {[%clk 0:00:01]}  Rc8 {[%clk 0:00:01]} 14. c5 {[%clk 0:00:01]}  Bc7 {[%clk 0:00:01]} 15. b4 {[%clk 0:00:01]}  Ne8 {[%clk 0:00:01]} 16. b5 {[%clk 0:00:01]}  axb5 {[%clk 0:00:01]} 17. axb5 {[%clk 0:00:01]}  f5 {[%clk 0:00:01]} 18. b6 {[%clk 0:00:01]}  Bb8 {[%clk 0:00:01]} 19. g3 {[%clk 0:00:01]}  g5 {[%clk 0:00:01]} 20. Kg2 {[%clk 0:00:01]}  Kh8 {[%clk 0:00:01]} 21. Qh5 {[%clk 0:00:01]}  f4 {[%clk 0:00:01]} 22. g4 {[%clk 0:00:01]}  Qf6 {[%clk 0:00:01]} 23. Ncxe4 {[%clk 0:00:01]}  dxe4 {[%clk 0:00:01]} 24. Nxe4 {[%clk 0:00:01]}  Qg6 {[%clk 0:00:01]} 25. d5+ {[%clk 0:00:01]}  Be5 {[%clk 0:00:01]} 26. Bxe5+ {[%clk 0:00:01]}  Nxe5 {[%clk 0:00:01]} 27. Qxg6 {[%clk 0:00:01]}  hxg6 {[%clk 0:00:01]} 28. d6 {[%clk 0:00:01]}  Nd7 {[%clk 0:00:00]} 29. Nxg5 {[%clk 0:00:01]}  Nxc5 {[%clk 0:00:00]} 30. Rfd1 {[%clk 0:00:01]}  Nf6 {[%clk 0:00:00]} 31. exf4 {[%clk 0:00:01]}  Nd5 {[%clk 0:00:00]} 32. Ne6 {[%clk 0:00:01]}  Nxe6 {[%clk 0:00:00]} 0-1


[Site "https://www.chess.com"]

[Event "Titled Tuesday Blitz April 25 Late 2023"]
[White "Karttunen, Mika"]
[Black "Ankerst, Mihael"]
[WhiteFideId "502081"]
[BlackFideId "14602369"]
[WhiteElo "2396"]
[BlackElo "2370"]
[Result "1-0"]
[Round "01"]
[TimeControl "180+2"]
[Date "2023.04.25"]
[WhiteClock "0:00:09"]
[BlackClock "0:00:19"]

1. e4 {[%clk 0:03:00]}  c5 {[%clk 0:02:59]} 2. Nf3 {[%clk 0:03:00]}  Qb6 {[%clk 0:02:59]} 3. Nc3 {[%clk 0:02:59]}  Nc6 {[%clk 0:03:00]} 4. g3 {[%clk 0:02:58]}  e6 {[%clk 0:03:00]} 5. Bg2 {[%clk 0:02:58]}  d6 {[%clk 0:03:01]} 6. O-O {[%clk 0:02:58]}  Be7 {[%clk 0:03:01]} 7. d3 {[%clk 0:02:57]}  Nf6 {[%clk 0:03:02]} 8. a4 {[%clk 0:02:53]}  a6 {[%clk 0:03:02]} 9. Bd2 {[%clk 0:02:42]}  Bd7 {[%clk 0:03:01]} 10. h3 {[%clk 0:02:24]}  O-O {[%clk 0:03:01]} 11. Kh2 {[%clk 0:02:23]}  Rac8 {[%clk 0:03:01]} 12. Nh4 {[%clk 0:02:22]}  Nd4 {[%clk 0:02:53]} 13. b3 {[%clk 0:02:19]}  Bc6 {[%clk 0:02:51]} 14. f4 {[%clk 0:02:18]}  d5 {[%clk 0:02:51]} 15. e5 {[%clk 0:02:05]}  Nd7 {[%clk 0:02:51]} 16. Nf3 {[%clk 0:02:05]}  Nxf3+ {[%clk 0:02:51]} 17. Bxf3 {[%clk 0:02:04]}  f6 {[%clk 0:02:49]} 18. Qe2 {[%clk 0:01:35]}  fxe5 {[%clk 0:02:44]} 19. fxe5 {[%clk 0:01:35]}  Qc7 {[%clk 0:02:43]} 20. Rae1 {[%clk 0:01:33]}  d4 {[%clk 0:02:37]} 21. Bxc6 {[%clk 0:00:59]}  Qxc6 {[%clk 0:02:37]} 22. Nd1 {[%clk 0:00:48]}  Qd5 {[%clk 0:02:23]} 23. Rxf8+ {[%clk 0:00:47]}  Rxf8 {[%clk 0:02:20]} 24. a5 {[%clk 0:00:46]}  Nb8 {[%clk 0:02:15]} 25. Nb2 {[%clk 0:00:45]}  Nc6 {[%clk 0:02:09]} 26. Nc4 {[%clk 0:00:44]}  h6 {[%clk 0:02:07]} 27. Qg2 {[%clk 0:00:40]}  Qd8 {[%clk 0:01:46]} 28. Rf1 {[%clk 0:00:38]}  Rxf1 {[%clk 0:01:39]} 29. Qxf1 {[%clk 0:00:38]}  Bg5 {[%clk 0:01:40]} 30. Bf4 {[%clk 0:00:31]}  Bxf4 {[%clk 0:01:39]} 31. Qxf4 {[%clk 0:00:30]}  Qd5 {[%clk 0:01:36]} 32. h4 {[%clk 0:00:28]}  Qd8 {[%clk 0:01:33]} 33. Nd6 {[%clk 0:00:19]}  Qc7 {[%clk 0:01:25]} 34. Qg4 {[%clk 0:00:16]}  Qe7 {[%clk 0:01:20]} 35. Nc4 {[%clk 0:00:13]}  Nb4 {[%clk 0:01:21]} 36. Qe2 {[%clk 0:00:12]}  Nd5 {[%clk 0:01:21]} 37. Kg2 {[%clk 0:00:11]}  Qc7 {[%clk 0:01:19]} 38. Qe4 {[%clk 0:00:11]}  Qc6 {[%clk 0:01:18]} 39. Kh3 {[%clk 0:00:10]}  Qe8 {[%clk 0:01:17]} 40. Qg4 {[%clk 0:00:09]}  Qf7 {[%clk 0:01:12]} 41. Kg2 {[%clk 0:00:09]}  Kh8 {[%clk 0:01:04]} 42. Qf3 {[%clk 0:00:09]}  Qe8 {[%clk 0:01:00]} 43. Nd6 {[%clk 0:00:09]}  Qe7 {[%clk 0:00:59]} 44. Nf7+ {[%clk 0:00:07]}  Kg8 {[%clk 0:00:56]} 45. Nd6 {[%clk 0:00:08]}  Nb4 {[%clk 0:00:53]} 46. Qxb7 {[%clk 0:00:07]}  Qf8 {[%clk 0:00:51]} 47. Qf3 {[%clk 0:00:05]}  Qe7 {[%clk 0:00:35]} 48. Qa8+ {[%clk 0:00:05]}  Kh7 {[%clk 0:00:33]} 49. Qe4+ {[%clk 0:00:06]}  g6 {[%clk 0:00:33]} 50. h5 {[%clk 0:00:05]}  Qg7 {[%clk 0:00:31]} 51. Ne8 {[%clk 0:00:06]}  Qf7 {[%clk 0:00:31]} 52. Nf6+ {[%clk 0:00:07]}  Kg7 {[%clk 0:00:30]} 53. hxg6 {[%clk 0:00:07]}  Qxg6 {[%clk 0:00:29]} 54. Qb7+ {[%clk 0:00:08]}  Qf7 {[%clk 0:00:29]} 55. Ne8+ {[%clk 0:00:08]}  Kf8 {[%clk 0:00:28]} 56. Qxf7+ {[%clk 0:00:08]}  Kxf7 {[%clk 0:00:28]} 57. Nd6+ {[%clk 0:00:09]}  Kg6 {[%clk 0:00:27]} 58. Ne4 {[%clk 0:00:09]}  Kf5 {[%clk 0:00:20]} 59. Nxc5 {[%clk 0:00:10]}  Kxe5 {[%clk 0:00:21]} 60. Kf3 {[%clk 0:00:09]}  Kd5 {[%clk 0:00:21]} 61. Nd7 {[%clk 0:00:09]}  Nxc2 {[%clk 0:00:22]} 62. Nf6+ {[%clk 0:00:09]}  Kc6 {[%clk 0:00:22]} 63. Ng8 {[%clk 0:00:09]}  Na1 {[%clk 0:00:21]} 64. b4 {[%clk 0:00:08]}  Nb3 {[%clk 0:00:22]} 65. Ke4 {[%clk 0:00:08]}  Kd6 {[%clk 0:00:22]} 66. Nxh6 {[%clk 0:00:08]}  Nd2+ {[%clk 0:00:22]} 67. Kxd4 {[%clk 0:00:08]}  Nf3+ {[%clk 0:00:23]} 68. Ke3 {[%clk 0:00:08]}  Ne5 {[%clk 0:00:22]} 69. Kd4 {[%clk 0:00:08]}  Nc6+ {[%clk 0:00:21]} 70. Kc4 {[%clk 0:00:08]}  Na7 {[%clk 0:00:21]} 71. Nf7+ {[%clk 0:00:07]}  Kc6 {[%clk 0:00:21]} 72. Ne5+ {[%clk 0:00:08]}  Kd6 {[%clk 0:00:22]} 73. d4 {[%clk 0:00:08]}  Nb5 {[%clk 0:00:21]} 74. g4 {[%clk 0:00:09]}  Na3+ {[%clk 0:00:19]} 75. Kd3 {[%clk 0:00:09]}  Kd5 {[%clk 0:00:19]} 76. g5 {[%clk 0:00:10]}  Nb5 {[%clk 0:00:19]} 77. Nf3 {[%clk 0:00:09]}  Kd6 {[%clk 0:00:16]} 78. g6 {[%clk 0:00:10]}  Ke7 {[%clk 0:00:16]} 79. Ne5 {[%clk 0:00:09]}  Nd6 {[%clk 0:00:16]} 80. Ke3 {[%clk 0:00:07]}  Kf6 {[%clk 0:00:17]} 81. Kd3 {[%clk 0:00:08]}  Kg7 {[%clk 0:00:17]} 82. Ke3 {[%clk 0:00:06]}  Kf6 {[%clk 0:00:17]} 83. Kf4 {[%clk 0:00:07]}  Kg7 {[%clk 0:00:17]} 84. Kg5 {[%clk 0:00:07]}  Ne4+ {[%clk 0:00:18]} 85. Kg4 {[%clk 0:00:08]}  Nd6 {[%clk 0:00:19]} 86. Kh5 {[%clk 0:00:08]}  Ne4 {[%clk 0:00:18]} 87. b5 {[%clk 0:00:07]}  axb5 {[%clk 0:00:19]} 88. a6 {[%clk 0:00:07]}  Nf6+ {[%clk 0:00:18]} 89. Kh4 {[%clk 0:00:07]}  Nd5 {[%clk 0:00:19]} 90. a7 {[%clk 0:00:07]}  Nb6 {[%clk 0:00:19]} 91. Kg5 {[%clk 0:00:07]}  b4 {[%clk 0:00:19]} 92. Nc4 {[%clk 0:00:06]}  Na8 {[%clk 0:00:19]} 93. Nd2 {[%clk 0:00:07]}  b3 {[%clk 0:00:20]} 94. Nxb3 {[%clk 0:00:07]}  Nb6 {[%clk 0:00:19]} 95. Nc5 {[%clk 0:00:08]}  Na8 {[%clk 0:00:20]} 96. Nxe6+ {[%clk 0:00:08]}  Kg8 {[%clk 0:00:19]} 97. Kf6 {[%clk 0:00:09]}  Nb6 {[%clk 0:00:19]} 98. Ke7 {[%clk 0:00:09]}  Nd5+ {[%clk 0:00:19]} 99. Kd8 {[%clk 0:00:09]}  Nb6 {[%clk 0:00:19]} 100. Kc7 {[%clk 0:00:09]}  Nc4 {[%clk 0:00:19]} 101. a8=Q# {[%clk 0:00:09]} 1-0


[Site "https://www.chess.com"]

[Event "Titled Tuesday Blitz April 25 Late 2023"]
[White "Torres Dominguez, David"]
[Black "Sztokbant, Bernardo Vainzoff"]
[WhiteFideId "2220857"]
[BlackFideId "2115956"]
[WhiteElo "1999"]
[BlackElo "2222"]
[Result "0-1"]
[Round "01"]
[TimeControl "180+2"]
[Date "2023.04.26"]
[WhiteClock "0:01:26"]
[BlackClock "0:01:44"]

1. e4 {[%clk 0:02:59]}  c5 {[%clk 0:02:57]} 2. Nc3 {[%clk 0:02:59]}  Nc6 {[%clk 0:02:57]} 3. Bb5 {[%clk 0:02:59]}  Nd4 {[%clk 0:02:55]} 4. Bc4 {[%clk 0:03:00]}  e6 {[%clk 0:02:55]} 5. Nge2 {[%clk 0:02:59]}  b6 {[%clk 0:02:40]} 6. O-O {[%clk 0:02:57]}  Bb7 {[%clk 0:02:39]} 7. d3 {[%clk 0:02:58]}  d6 {[%clk 0:02:37]} 8. Nxd4 {[%clk 0:02:55]}  cxd4 {[%clk 0:02:38]} 9. Bb5+ {[%clk 0:02:55]}  Ke7 {[%clk 0:02:37]} 10. Ne2 {[%clk 0:02:55]}  e5 {[%clk 0:02:36]} 11. f4 {[%clk 0:02:54]}  Nf6 {[%clk 0:02:35]} 12. fxe5 {[%clk 0:02:53]}  dxe5 {[%clk 0:02:36]} 13. Bg5 {[%clk 0:02:53]}  Qd6 {[%clk 0:02:33]} 14. Bxf6+ {[%clk 0:02:50]}  gxf6 {[%clk 0:02:34]} 15. Ng3 {[%clk 0:02:50]}  Bc8 {[%clk 0:02:34]} 16. Ba6 {[%clk 0:02:42]}  Be6 {[%clk 0:02:31]} 17. Bc4 {[%clk 0:02:42]}  Bh6 {[%clk 0:02:27]} 18. Qh5 {[%clk 0:02:35]}  Bf4 {[%clk 0:02:20]} 19. Nf5+ {[%clk 0:02:33]}  Bxf5 {[%clk 0:02:18]} 20. Qxf7+ {[%clk 0:02:32]}  Kd8 {[%clk 0:02:19]} 21. exf5 {[%clk 0:02:26]}  Rc8 {[%clk 0:02:17]} 22. Be6 {[%clk 0:02:19]}  Rf8 {[%clk 0:02:05]} 23. Qxa7 {[%clk 0:01:57]}  Rxc2 {[%clk 0:01:59]} 24. Qa4 {[%clk 0:01:36]}  Qc6 {[%clk 0:01:45]} 25. Qa3 {[%clk 0:01:26]}  Qxg2# {[%clk 0:01:44]} 0-1


[Site "https://www.chess.com"]

[Event "Titled Tuesday Blitz April 25 Late 2023"]
[White "Oliveira, Tiago Batista"]
[Black "Kavutskiy, Konstantin"]
[WhiteFideId "2108291"]
[BlackFideId "2026384"]
[WhiteElo "1962"]
[BlackElo "2323"]
[Result "1-0"]
[Round "01"]
[TimeControl "180+2"]
[Date "2023.04.25"]
[WhiteClock "0:00:06"]
[BlackClock "0:00:03"]

1. d4 {[%clk 0:02:58]}  Nf6 {[%clk 0:02:56]} 2. c4 {[%clk 0:02:47]}  g6 {[%clk 0:02:55]} 3. Nc3 {[%clk 0:02:34]}  Bg7 {[%clk 0:02:55]} 4. e4 {[%clk 0:02:33]}  d6 {[%clk 0:02:55]} 5. Nf3 {[%clk 0:02:31]}  O-O {[%clk 0:02:53]} 6. Be2 {[%clk 0:02:29]}  e5 {[%clk 0:02:52]} 7. Be3 {[%clk 0:02:29]}  Ng4 {[%clk 0:02:48]} 8. Bg5 {[%clk 0:02:29]}  f6 {[%clk 0:02:48]} 9. Bh4 {[%clk 0:02:28]}  Nc6 {[%clk 0:02:47]} 10. h3 {[%clk 0:01:53]}  Nh6 {[%clk 0:02:43]} 11. dxe5 {[%clk 0:01:48]}  dxe5 {[%clk 0:02:37]} 12. Qxd8 {[%clk 0:01:46]}  Rxd8 {[%clk 0:02:36]} 13. Nd5 {[%clk 0:01:46]}  g5 {[%clk 0:02:25]} 14. Nxg5 {[%clk 0:01:32]}  fxg5 {[%clk 0:02:19]} 15. Bxg5 {[%clk 0:01:32]}  Rxd5 {[%clk 0:01:57]} 16. cxd5 {[%clk 0:01:26]}  Nd4 {[%clk 0:01:53]} 17. Bd3 {[%clk 0:01:13]}  Nf7 {[%clk 0:01:52]} 18. Bd2 {[%clk 0:01:08]}  c6 {[%clk 0:01:45]} 19. dxc6 {[%clk 0:01:02]}  bxc6 {[%clk 0:01:46]} 20. O-O {[%clk 0:01:00]}  Nd6 {[%clk 0:01:39]} 21. Rac1 {[%clk 0:00:58]}  Rb8 {[%clk 0:01:35]} 22. b3 {[%clk 0:00:55]}  Bxh3 {[%clk 0:01:08]} 23. Be3 {[%clk 0:00:49]}  Bd7 {[%clk 0:00:57]} 24. f4 {[%clk 0:00:40]}  Re8 {[%clk 0:00:44]} 25. f5 {[%clk 0:00:34]}  Bf6 {[%clk 0:00:43]} 26. Rc5 {[%clk 0:00:23]}  Kf7 {[%clk 0:00:40]} 27. Ra5 {[%clk 0:00:17]}  Rg8 {[%clk 0:00:21]} 28. Bxd4 {[%clk 0:00:16]}  exd4 {[%clk 0:00:17]} 29. e5 {[%clk 0:00:16]}  Nb7 {[%clk 0:00:13]} 30. e6+ {[%clk 0:00:13]}  Bxe6 {[%clk 0:00:12]} 31. fxe6+ {[%clk 0:00:13]}  Ke7 {[%clk 0:00:05]} 32. Rxa7 {[%clk 0:00:12]}  Rb8 {[%clk 0:00:06]} 33. Bc4 {[%clk 0:00:11]}  c5 {[%clk 0:00:04]} 34. Bd5 {[%clk 0:00:10]}  Kd6 {[%clk 0:00:04]} 35. Rxb7 {[%clk 0:00:11]}  Re8 {[%clk 0:00:03]} 36. Bc4 {[%clk 0:00:10]}  Ke5 {[%clk 0:00:03]} 37. Rf7 {[%clk 0:00:09]}  Bh8 {[%clk 0:00:02]} 38. R1f5+ {[%clk 0:00:09]}  Ke4 {[%clk 0:00:02]} 39. e7 {[%clk 0:00:09]}  Be5 {[%clk 0:00:02]} 40. Rf8 {[%clk 0:00:10]}  Rxe7 {[%clk 0:00:02]} 41. Rf3 {[%clk 0:00:08]}  d3 {[%clk 0:00:02]} 42. Rd8 {[%clk 0:00:08]}  Bd4+ {[%clk 0:00:02]} 43. Kf1 {[%clk 0:00:07]}  d2 {[%clk 0:00:02]} 44. Ke2 {[%clk 0:00:08]}  Bc3 {[%clk 0:00:02]} 45. Kd1 {[%clk 0:00:08]}  Bb4 {[%clk 0:00:02]} 46. Bd5+ {[%clk 0:00:08]}  Kd4 {[%clk 0:00:02]} 47. Bc4+ {[%clk 0:00:06]}  Ke5 {[%clk 0:00:02]} 48. Re3+ {[%clk 0:00:06]}  Kf6 {[%clk 0:00:02]} 49. Rxe7 {[%clk 0:00:06]}  Kxe7 {[%clk 0:00:03]} 50. Rh8 {[%clk 0:00:06]} 1-0


[Site "https://www.chess.com"]

[Event "Titled Tuesday Blitz April 25 Late 2023"]
[White "Lutz, Igor Oscar"]
[Black "Korkmaz, Necmettin"]
[WhiteFideId "2110806"]
[BlackFideId "6303285"]
[WhiteElo "1969"]
[BlackElo "2097"]
[Result "0-1"]
[Round "01"]
[TimeControl "180+2"]
[Date "2023.04.25"]
[WhiteClock "0:00:15"]
[BlackClock "0:01:33"]

1. d4 {[%clk 0:02:59]}  d5 {[%clk 0:02:58]} 2. c4 {[%clk 0:03:00]}  e5 {[%clk 0:02:56]} 3. dxe5 {[%clk 0:02:59]}  d4 {[%clk 0:02:57]} 4. Nf3 {[%clk 0:03:00]}  Nc6 {[%clk 0:02:56]} 5. g3 {[%clk 0:03:00]}  Be6 {[%clk 0:02:56]} 6. b3 {[%clk 0:02:58]}  Qd7 {[%clk 0:02:56]} 7. Bg2 {[%clk 0:02:57]}  Bh3 {[%clk 0:02:56]} 8. O-O {[%clk 0:02:57]}  Bxg2 {[%clk 0:02:55]} 9. Kxg2 {[%clk 0:02:57]}  Nge7 {[%clk 0:02:52]} 10. Bb2 {[%clk 0:02:56]}  O-O-O {[%clk 0:02:52]} 11. Nbd2 {[%clk 0:02:51]}  Ng6 {[%clk 0:02:52]} 12. Ne4 {[%clk 0:02:50]}  h5 {[%clk 0:02:44]} 13. h4 {[%clk 0:02:47]}  Be7 {[%clk 0:02:34]} 14. Neg5 {[%clk 0:02:42]}  Ngxe5 {[%clk 0:02:33]} 15. Nxe5 {[%clk 0:02:38]}  Nxe5 {[%clk 0:02:32]} 16. Nf3 {[%clk 0:02:22]}  Nxf3 {[%clk 0:02:16]} 17. exf3 {[%clk 0:02:22]}  g5 {[%clk 0:02:16]} 18. hxg5 {[%clk 0:01:51]}  h4 {[%clk 0:02:14]} 19. Rh1 {[%clk 0:01:49]}  Bxg5 {[%clk 0:02:13]} 20. Qd3 {[%clk 0:01:41]}  hxg3 {[%clk 0:02:07]} 21. fxg3 {[%clk 0:01:40]}  Be3 {[%clk 0:02:04]} 22. Rad1 {[%clk 0:01:23]}  Rdg8 {[%clk 0:02:00]} 23. Qxe3 {[%clk 0:00:41]}  Rxh1 {[%clk 0:01:59]} 24. Qxd4 {[%clk 0:00:22]}  Qh3+ {[%clk 0:01:57]} 25. Kf2 {[%clk 0:00:22]}  Qh2+ {[%clk 0:01:50]} 26. Ke3 {[%clk 0:00:22]}  Re8+ {[%clk 0:01:49]} 27. Kf4 {[%clk 0:00:20]}  Qh6+ {[%clk 0:01:44]} 28. Kf5 {[%clk 0:00:15]}  Rh5+ {[%clk 0:01:40]} 29. Kg4 {[%clk 0:00:15]}  Qg5# {[%clk 0:01:33]} 0-1


[Site "https://www.chess.com"]

[Event "Titled Tuesday Blitz April 25 Late 2023"]
[White "Jimenez Almeida, Luis David"]
[Black "Dargan, Paul A G"]
[WhiteFideId "22242244"]
[BlackFideId "416762"]
[WhiteElo "2245"]
[BlackElo "2042"]
[Result "1-0"]
[Round "01"]
[TimeControl "180+2"]
[Date "2023.04.25"]
[WhiteClock "0:01:05"]
[BlackClock "0:00:16"]

1. e4 {[%clk 0:02:52]}  c5 {[%clk 0:02:59]} 2. Nc3 {[%clk 0:02:52]}  Nc6 {[%clk 0:02:59]} 3. g3 {[%clk 0:02:52]}  g6 {[%clk 0:02:58]} 4. Bg2 {[%clk 0:02:52]}  Bg7 {[%clk 0:02:58]} 5. Nge2 {[%clk 0:02:53]}  d6 {[%clk 0:02:55]} 6. O-O {[%clk 0:02:52]}  e5 {[%clk 0:02:54]} 7. Nd5 {[%clk 0:02:52]}  Nge7 {[%clk 0:02:51]} 8. c3 {[%clk 0:02:50]}  O-O {[%clk 0:02:42]} 9. d3 {[%clk 0:02:49]}  f5 {[%clk 0:02:36]} 10. a4 {[%clk 0:02:43]}  Kh8 {[%clk 0:02:35]} 11. Be3 {[%clk 0:02:34]}  Nxd5 {[%clk 0:02:21]} 12. exd5 {[%clk 0:02:35]}  Ne7 {[%clk 0:02:21]} 13. f4 {[%clk 0:02:35]}  b6 {[%clk 0:02:08]} 14. fxe5 {[%clk 0:02:32]}  Bxe5 {[%clk 0:02:07]} 15. Qd2 {[%clk 0:02:32]}  a6 {[%clk 0:02:00]} 16. d4 {[%clk 0:02:31]}  Bg7 {[%clk 0:01:55]} 17. Nf4 {[%clk 0:02:23]}  Rb8 {[%clk 0:01:49]} 18. Kh1 {[%clk 0:02:18]}  Ng8 {[%clk 0:01:35]} 19. Ne6 {[%clk 0:02:10]}  Bxe6 {[%clk 0:01:33]} 20. dxe6 {[%clk 0:02:11]}  cxd4 {[%clk 0:01:20]} 21. Bxd4 {[%clk 0:02:12]}  Nf6 {[%clk 0:01:16]} 22. Rae1 {[%clk 0:02:09]}  Qe7 {[%clk 0:01:14]} 23. h3 {[%clk 0:01:59]}  Rfd8 {[%clk 0:01:13]} 24. c4 {[%clk 0:01:58]}  Nh5 {[%clk 0:01:07]} 25. Kh2 {[%clk 0:01:56]}  f4 {[%clk 0:00:49]} 26. gxf4 {[%clk 0:01:54]}  Qh4 {[%clk 0:00:42]} 27. Bxg7+ {[%clk 0:01:53]}  Kxg7 {[%clk 0:00:42]} 28. e7 {[%clk 0:01:49]}  Re8 {[%clk 0:00:37]} 29. Qd4+ {[%clk 0:01:49]}  Kh6 {[%clk 0:00:32]} 30. Qe3 {[%clk 0:01:43]}  Rb7 {[%clk 0:00:24]} 31. f5+ {[%clk 0:01:42]}  Kg7 {[%clk 0:00:23]} 32. Bxb7 {[%clk 0:01:30]}  Nf6 {[%clk 0:00:21]} 33. Qg3 {[%clk 0:01:12]}  Qxc4 {[%clk 0:00:19]} 34. fxg6 {[%clk 0:01:10]}  hxg6 {[%clk 0:00:20]} 35. Bg2 {[%clk 0:01:06]}  Qxa4 {[%clk 0:00:17]} 36. Rxf6 {[%clk 0:01:04]}  Kxf6 {[%clk 0:00:17]} 37. Qc3+ {[%clk 0:01:05]}  Kf7 {[%clk 0:00:16]} 38. Bd5# {[%clk 0:01:05]} 1-0


[Site "https://www.chess.com"]

[Event "Titled Tuesday Blitz April 25 Late 2023"]
[White "Hnydiuk, Aleksander"]
[Black "Vargas, Mauricio"]
[WhiteFideId "1109057"]
[BlackFideId "4404572"]
[WhiteElo "2374"]
[BlackElo "1998"]
[Result "1-0"]
[Round "01"]
[TimeControl "180+2"]
[Date "2023.04.25"]
[WhiteClock "0:00:01"]
[BlackClock "0:00:01"]

1. g3 {[%clk 0:00:01]}  c6 {[%clk 0:00:01]} 2. Bg2 {[%clk 0:00:01]}  e5 {[%clk 0:00:01]} 3. Nf3 {[%clk 0:00:01]}  e4 {[%clk 0:00:01]} 4. Nd4 {[%clk 0:00:01]}  Bc5 {[%clk 0:00:01]} 5. Nb3 {[%clk 0:00:01]}  Bb6 {[%clk 0:00:01]} 6. Bxe4 {[%clk 0:00:01]}  Qf6 {[%clk 0:00:01]} 7. O-O {[%clk 0:00:01]}  d5 {[%clk 0:00:01]} 8. Bg2 {[%clk 0:00:01]}  h5 {[%clk 0:00:01]} 9. d4 {[%clk 0:00:01]}  h4 {[%clk 0:00:01]} 10. Nc3 {[%clk 0:00:01]}  hxg3 {[%clk 0:00:01]} 11. fxg3 {[%clk 0:00:01]}  Qg6 {[%clk 0:00:01]} 12. e4 {[%clk 0:00:01]}  Bg4 {[%clk 0:00:01]} 13. Qe1 {[%clk 0:00:01]}  Qh5 {[%clk 0:00:01]} 14. exd5+ {[%clk 0:00:01]}  Kf8 {[%clk 0:00:01]} 15. h4 {[%clk 0:00:01]}  cxd5 {[%clk 0:00:01]} 16. Nxd5 {[%clk 0:00:01]}  Qxd5 {[%clk 0:00:01]} 17. Bxd5 {[%clk 0:00:01]}  Nc6 {[%clk 0:00:01]} 18. Rxf7# {[%clk 0:00:01]} 1-0


[Site "https://www.chess.com"]